[Event "MČR 2022 blesk"]
[Site "Turnov, Czech Republic"]
[Date "2022.09.10"]
[Round "2.2"]
[White "Nagy, Ladislav"]
[Black "Cerveny, Martin"]
[Result "1/2-1/2"]
[TimeControl "2x 3 min + 2s/move"]
[WhiteElo "2189"]
[BlackElo "2288"]

1. e4 {[%clk 00:03:03]} c5 {[%clk 00:03:04]} {[%emt 00:00:08]} 2. Nf3 {[%clk
00:03:04]} d6 {[%clk 00:03:05]} 3. d4 {[%clk 00:03:05]} cxd4 4. Qxd4 Nc6 {[%clk
00:03:06]} 5. Bb5 {[%clk 00:03:06]} Bd7 {[%clk 00:03:07]} 6. Bxc6 {[%clk
00:03:07]} Bxc6 {[%clk 00:03:07]} {[%emt 00:00:04]} 7. Nc3 {[%clk 00:03:05]} h6
{[%clk 00:03:08]} 8. Qd3 {[%clk 00:03:02]} {[%emt 00:00:05]} Nf6 {[%clk
00:03:02]} {[%emt 00:00:06]} 9. Be3 {[%clk 00:02:36]} {[%emt 00:00:27]} e5
{[%clk 00:02:53]} {[%emt 00:00:21]} 10. O-O-O {[%clk 00:02:09]} {[%emt
00:00:20]} Be7 {[%clk 00:02:54]} 11. Rhg1 {[%clk 00:02:02]} {[%emt 00:00:10]}
Qa5 {[%clk 00:02:50]} {[%emt 00:00:19]} 12. Kb1 {[%clk 00:01:59]} Rc8 {[%clk
00:02:35]} {[%emt 00:00:09]} 13. g4 {[%clk 00:01:51]} {[%emt 00:00:09]} Bd7
{[%clk 00:02:19]} {[%emt 00:00:19]} 14. g5 {[%clk 00:01:38]} {[%emt 00:00:15]}
hxg5 {[%clk 00:02:19]} {[%emt 00:00:09]} 15. Bxg5 {[%clk 00:01:32]} {[%emt
00:00:08]} Rxc3 {[%clk 00:02:05]} {[%emt 00:00:09]} 16. bxc3 {[%clk 00:01:16]}
{[%emt 00:00:18]} Be6 {[%clk 00:01:38]} {[%emt 00:00:30]} 17. c4 {[%clk
00:01:02]} {[%emt 00:00:20]} b5 {[%clk 00:01:27]} {[%emt 00:00:07]} 18. Bd2
{[%clk 00:00:58]} {[%emt 00:00:06]} Qa6 {[%clk 00:01:18]} {[%emt 00:00:11]} 19.
Qc3 {[%clk 00:00:32]} {[%emt 00:00:28]} Bxc4 {[%clk 00:01:17]} {[%emt
00:00:06]} 20. Qa5 {[%clk 00:00:31]} {[%emt 00:00:05]} Qxa5 21. Bxa5 {[%clk
00:00:31]} {[%emt 00:00:05]} Be2 {[%clk 00:01:11]} {[%emt 00:00:05]} 22. Rd3
{[%clk 00:00:14]} {[%emt 00:00:16]} Bxd3 23. cxd3 {[%clk 00:00:15]} Rh3 {[%clk
00:01:07]} {[%emt 00:00:11]} 24. Rg3 {[%clk 00:00:17]} Rxg3 {[%clk 00:01:05]}
25. fxg3 {[%clk 00:00:16]} {[%emt 00:00:05]} Nd7 {[%clk 00:00:51]} {[%emt
00:00:13]} 26. Bb4 {[%clk 00:00:14]} {[%emt 00:00:04]} Nb8 {[%clk 00:00:46]}
{[%emt 00:00:06]} 27. Kc2 {[%clk 00:00:13]} {[%emt 00:00:08]} Nc6 {[%clk
00:00:48]} 28. Bc3 {[%clk 00:00:14]} Kd7 {[%clk 00:00:49]} 29. Kb3 {[%clk
00:00:10]} {[%emt 00:00:07]} a5 {[%clk 00:00:49]} {[%emt 00:00:04]} 30. a4
{[%clk 00:00:11]} b4 {[%clk 00:00:48]} 31. Be1 {[%clk 00:00:10]} {[%emt
00:00:05]} Nd8 {[%clk 00:00:43]} {[%emt 00:00:04]} 32. Bf2 {[%clk 00:00:11]}
Kc6 {[%clk 00:00:45]} {[%emt 00:00:07]} 33. Kc4 {[%clk 00:00:08]} {[%emt
00:00:04]} Ne6 {[%clk 00:00:40]} {[%emt 00:00:04]} 34. Be3 {[%clk 00:00:09]} f6
{[%clk 00:00:39]} {[%emt 00:00:09]} 35. Bf2 {[%clk 00:00:08]} Bd8 {[%clk
00:00:39]} 36. Be3 {[%clk 00:00:05]} {[%emt 00:00:06]} Bc7 {[%clk 00:00:40]} 37.
h4 {[%clk 00:00:05]} {[%emt 00:00:05]} Nf8 {[%clk 00:00:41]} 38. g4 {[%clk
00:00:05]} Nd7 {[%clk 00:00:42]} 39. g5 {[%clk 00:00:05]} {[%emt 00:00:09]}
fxg5 {[%clk 00:00:43]} 40. Nxg5 {[%clk 00:00:05]} Bb6 {[%clk 00:00:43]} 41.
Bxb6 {[%clk 00:00:06]} {[%emt 00:00:04]} Nxb6+ {[%clk 00:00:44]} 42. Kb3 {[%clk
00:00:07]} Kd7 {[%clk 00:00:44]} 43. Nh3 {[%clk 00:00:05]} {[%emt 00:00:04]}
Ke6 {[%clk 00:00:43]} {[%emt 00:00:04]} 44. Nf2 {[%clk 00:00:04]} {[%emt
00:00:04]} d5 {[%clk 00:00:45]} 45. exd5+ {[%clk 00:00:04]} Kxd5 {[%clk
00:00:45]} 46. Ne4 {[%clk 00:00:05]} {[%emt 00:00:04]} Kd4 {[%clk 00:00:46]} 47.
Nd6 {[%clk 00:00:06]} Kxd3 {[%clk 00:00:45]} {[%emt 00:00:05]} 48. Nb7 {[%clk
00:00:08]} Nc4 {[%clk 00:00:41]} {[%emt 00:00:06]} 49. Nc5 {[%clk 00:00:07]}
{[%emt 00:00:05]} Kd4 {[%clk 00:00:42]} 50. Ne6+ {[%clk 00:00:07]} Kd5 {[%clk
00:00:43]} 51. Nc7+ {[%clk 00:00:08]} {[%emt 00:00:04]} Kc6 {[%clk 00:00:44]}
52. Ne8 {[%clk 00:00:09]} {[%emt 00:00:05]} Nd2+ {[%clk 00:00:42]} 53. Kc2
{[%clk 00:00:10]} Nf3 {[%clk 00:00:43]} 54. h5 {[%clk 00:00:10]} {[%emt
00:00:04]} Nd4+ {[%clk 00:00:42]} {[%emt 00:00:05]} 55. Kb2 {[%clk 00:00:11]}
Nf5 {[%clk 00:00:42]} 56. Nxg7 {[%clk 00:00:06]} {[%emt 00:00:05]} Nh6 {[%clk
00:00:35]} {[%emt 00:00:13]} 57. Ne6 {[%clk 00:00:06]} Kd6 {[%clk 00:00:36]} 58.
Ng5 {[%clk 00:00:07]} {[%emt 00:00:05]} Kd5 {[%clk 00:00:37]} 59. Kc2 {[%clk
00:00:06]} {[%emt 00:00:04]} e4 {[%clk 00:00:38]} 60. Nh3 {[%clk 00:00:04]}
{[%emt 00:00:05]} Kd4 {[%clk 00:00:37]} 61. Nf4 {[%clk 00:00:04]} {[%emt
00:00:05]} e3 {[%clk 00:00:37]} 62. Ne2+ {[%clk 00:00:04]} {[%emt 00:00:04]}
Kc4 {[%clk 00:00:36]} {[%emt 00:00:05]} 63. Nf4 {[%clk 00:00:03]} b3+ {[%clk
00:00:37]} 64. Kb2 {[%clk 00:00:04]} Kb4 {[%clk 00:00:36]} {[%emt 00:00:04]} 65.
Ne2 {[%clk 00:00:03]} {[%emt 00:00:05]} Kxa4 {[%clk 00:00:36]} {[%emt
00:00:04]} 66. Nd4 {[%clk 00:00:05]} Kb4 {[%clk 00:00:35]} 67. Nxb3 {[%clk
00:00:06]} e2 {[%clk 00:00:34]} {[%emt 00:00:05]} 68. Nc1 {[%clk 00:00:07]}
e1=N {[%clk 00:00:28]} {[%emt 00:00:05]} 69. Ne2 {[%clk 00:00:05]} {[%emt
00:00:06]} a4 {[%clk 00:00:27]} {[%emt 00:00:04]} 70. Nd4 {[%clk 00:00:05]}
{[%emt 00:00:04]} Nd3+ {[%clk 00:00:26]} 71. Ka2 {[%clk 00:00:04]} Ng4 {[%clk
00:00:25]} {[%emt 00:00:04]} 72. Nc2+ {[%clk 00:00:04]} {[%emt 00:00:10]} Kb5
{[%clk 00:00:24]} 73. Nd4+ {[%clk 00:00:05]} Ka5 {[%clk 00:00:25]} 74. Ka3
{[%clk 00:00:04]} {[%emt 00:00:05]} Nde5 {[%clk 00:00:24]} 75. Ne2 {[%clk
00:00:03]} Nc4+ {[%clk 00:00:25]} {[%emt 00:00:09]} 76. Ka2 {[%clk 00:00:05]}
Kb4 {[%clk 00:00:27]} 77. Nc1 {[%clk 00:00:04]} Nd6 {[%clk 00:00:22]} {[%emt
00:00:08]} 78. Nd3+ {[%clk 00:00:05]} Kb5 {[%clk 00:00:23]} 79. Nb2 {[%clk
00:00:06]} Nh6 {[%clk 00:00:18]} {[%emt 00:00:08]} 80. Nxa4 {[%clk 00:00:07]}
Kxa4 {[%clk 00:00:19]} 81. Kb2 {[%clk 00:00:09]} Kb4 {[%clk 00:00:20]} 82. Kc2
{[%clk 00:00:10]} Kc4 {[%clk 00:00:21]} {[%emt 00:00:06]} 83. Kd2 {[%clk
00:00:11]} Ndf5 {[%clk 00:00:23]} 84. Ke2 {[%clk 00:00:11]} Kd4 {[%clk
00:00:24]} {[%emt 00:00:05]} 85. Kf3 {[%clk 00:00:12]} Ke5 {[%clk 00:00:25]} 86.
Ke2 {[%clk 00:00:08]} {[%emt 00:00:05]} Ke4 {[%clk 00:00:26]} 87. Kd2 {[%clk
00:00:10]} Ne3 {[%clk 00:00:26]} 88. Kc3 {[%clk 00:00:10]} Nhf5 {[%clk
00:00:27]} {[%emt 00:00:05]} 89. Kd2 {[%clk 00:00:08]} {[%emt 00:00:13]} Kd4
{[%clk 00:00:27]} 90. Ke2 {[%clk 00:00:09]} Ke4 {[%clk 00:00:27]} 91. Kd2 Nh6
92. Kc3 {[%clk 00:00:11]} {[%emt 00:00:05]} Nef5 {[%clk 00:00:29]} 93. Kc4
{[%clk 00:00:11]} Ke5 {[%clk 00:00:29]} {[%emt 00:00:04]} 94. Kc5 {[%clk
00:00:12]} Nd6 {[%clk 00:00:29]} 95. Kc6 {[%clk 00:00:13]} Ke6 {[%clk
00:00:28]} {[%emt 00:00:08]} 96. Kc5 {[%clk 00:00:14]} Ndf5 {[%clk 00:00:22]}
97. Kc4 {[%clk 00:00:13]} {[%emt 00:00:05]} Kd6 {[%clk 00:00:24]} 98. Kc3
{[%clk 00:00:13]} {[%emt 00:00:04]} Kc5 {[%clk 00:00:24]} 99. Kd3 {[%clk
00:00:14]} Kd5 {[%clk 00:00:26]} 100. Kc3 {[%clk 00:00:15]} Nd6 {[%clk
00:00:25]} {[%emt 00:00:05]} 101. Kd3 {[%clk 00:00:16]} Nc4 {[%clk 00:00:27]}
{[%emt 00:00:04]} 102. Kc3 {[%clk 00:00:15]} Ne5 {[%clk 00:00:28]} {[%emt
00:00:05]} 103. Kb4 {[%clk 00:00:14]} Kd4 {[%clk 00:00:28]} 104. Kb5 {[%clk
00:00:15]} {[%emt 00:00:05]} Nc4 {[%clk 00:00:28]} 105. Kb4 {[%clk 00:00:16]}
{[%emt 00:00:05]} Nd6 {[%clk 00:00:29]} 106. Kb3 {[%clk 00:00:14]} Nhf5 {[%clk
00:00:18]} {[%emt 00:00:10]} 107. Kb4 {[%clk 00:00:13]} {[%emt 00:00:29]} Kd5
{[%clk 00:00:18]} 108. h6 {[%clk 00:00:07]} Nxh6 1/2-1/2

[Event "MČR 2022 blesk"]
[Site "Turnov, Czech Republic"]
[Date "2022.09.10"]
[Round "2.3"]
[White "Balacek, Tadeas"]
[Black "Vybiral, Zdenek"]
[Result "0-1"]
[TimeControl "2x 3 min + 2s/move"]
[WhiteElo "2257"]
[BlackElo "2162"]

1. d4 {[%clk 00:03:02]} {[%emt 00:00:05]} Nf6 {[%clk 00:03:02]} 2. c4 {[%clk
00:03:03]} {[%emt 00:00:10]} g6 {[%clk 00:03:01]} 3. Nc3 {[%clk 00:03:03]} Bg7
{[%clk 00:03:02]} 4. Nf3 {[%clk 00:03:03]} {[%emt 00:00:12]} O-O {[%clk
00:03:02]} 5. Bg5 {[%clk 00:03:04]} c5 {[%clk 00:03:01]} {[%emt 00:00:12]} 6.
d5 {[%clk 00:03:03]} h6 {[%clk 00:02:58]} 7. Bh4 {[%clk 00:03:03]} Qa5 {[%clk
00:02:56]} {[%emt 00:00:05]} 8. Nd2 {[%clk 00:02:41]} {[%emt 00:00:18]} e6
{[%clk 00:02:51]} {[%emt 00:00:05]} 9. e3 {[%clk 00:02:38]} {[%emt 00:00:06]}
d6 {[%clk 00:02:36]} {[%emt 00:00:14]} 10. Be2 {[%clk 00:02:37]} {[%emt
00:00:06]} a6 {[%clk 00:02:32]} {[%emt 00:00:04]} 11. a4 {[%clk 00:02:34]}
{[%emt 00:00:08]} e5 {[%clk 00:01:54]} {[%emt 00:00:37]} 12. O-O {[%clk
00:02:32]} {[%emt 00:00:05]} Nbd7 {[%clk 00:01:54]} 13. e4 {[%clk 00:01:57]}
{[%emt 00:00:36]} Qc7 {[%clk 00:01:35]} {[%emt 00:00:27]} 14. Qc2 {[%clk
00:01:55]} b6 {[%clk 00:01:36]} {[%emt 00:00:04]} 15. a5 {[%clk 00:01:33]}
{[%emt 00:00:19]} bxa5 {[%clk 00:01:28]} {[%emt 00:00:14]} 16. Nb3 {[%clk
00:01:34]} Nh7 {[%clk 00:01:10]} {[%emt 00:00:18]} 17. Nxa5 {[%clk 00:01:31]}
{[%emt 00:00:04]} f5 {[%clk 00:01:11]} 18. f3 {[%clk 00:01:19]} {[%emt
00:00:15]} Bf6 {[%clk 00:01:01]} {[%emt 00:00:13]} 19. Bf2 {[%clk 00:01:14]}
{[%emt 00:00:07]} Bg5 {[%clk 00:00:57]} {[%emt 00:00:06]} 20. Nc6 {[%clk
00:01:11]} {[%emt 00:00:10]} Nb8 {[%clk 00:00:55]} 21. Na5 {[%clk 00:01:00]}
{[%emt 00:00:12]} Nd7 {[%clk 00:00:43]} {[%emt 00:00:14]} 22. Kh1 {[%clk
00:00:59]} {[%emt 00:00:06]} Rb8 {[%clk 00:00:41]} {[%emt 00:00:05]} 23. Nc6
{[%clk 00:00:58]} {[%emt 00:00:06]} Rb6 {[%clk 00:00:42]} 24. b4 {[%clk
00:00:58]} Bb7 {[%clk 00:00:37]} {[%emt 00:00:11]} 25. bxc5 {[%clk 00:00:53]}
Nxc5 {[%clk 00:00:37]} 26. Na5 {[%clk 00:00:40]} {[%emt 00:00:20]} Bc8 {[%clk
00:00:32]} {[%emt 00:00:06]} 27. Na4 {[%clk 00:00:29]} {[%emt 00:00:14]} Rb4
{[%clk 00:00:18]} {[%emt 00:00:33]} 28. Nxc5 {[%clk 00:00:27]} dxc5 {[%clk
00:00:19]} 29. Nb3 {[%clk 00:00:25]} Be7 {[%clk 00:00:18]} 30. Rab1 {[%clk
00:00:12]} {[%emt 00:00:10]} Ng5 {[%clk 00:00:11]} {[%emt 00:00:08]} 31. Nd2
{[%clk 00:00:12]} {[%emt 00:00:10]} a5 {[%clk 00:00:09]} 32. Ra1 {[%clk
00:00:10]} Bd7 {[%clk 00:00:09]} {[%emt 00:00:05]} 33. Bd3 {[%clk 00:00:09]} a4
{[%clk 00:00:07]} {[%emt 00:00:13]} 34. Qc3 {[%clk 00:00:10]} Bd6 {[%clk
00:00:08]} 35. Rfb1 {[%clk 00:00:09]} Rfb8 {[%clk 00:00:09]} 36. h4 {[%clk
00:00:08]} {[%emt 00:00:07]} Nf7 {[%clk 00:00:10]} 37. Be3 {[%clk 00:00:09]} f4
{[%clk 00:00:11]} 38. Bf2 {[%clk 00:00:11]} R8b7 {[%clk 00:00:10]} {[%emt
00:00:04]} 39. Kg1 {[%clk 00:00:11]} Qb8 {[%clk 00:00:11]} 40. Kf1 {[%clk
00:00:11]} Rxb1+ {[%clk 00:00:12]} {[%emt 00:00:07]} 41. Rxb1 {[%clk 00:00:12]}
Rxb1+ {[%clk 00:00:12]} 42. Bxb1 {[%clk 00:00:13]} Qb4 {[%clk 00:00:12]} 43.
Qxb4 {[%clk 00:00:12]} {[%emt 00:00:04]} cxb4 {[%clk 00:00:13]} 44. c5 {[%clk
00:00:14]} Bb8 {[%clk 00:00:13]} 45. c6 {[%clk 00:00:14]} {[%emt 00:00:04]} Bc8
{[%clk 00:00:14]} 46. Nc4 {[%clk 00:00:14]} Nd6 {[%clk 00:00:13]} {[%emt
00:00:09]} 47. Nxe5 {[%clk 00:00:14]} Nxe4 {[%clk 00:00:13]} 48. Nd7 {[%clk
00:00:03]} {[%emt 00:00:14]} Nd2+ {[%clk 00:00:12]} 49. Ke2 {[%clk 00:00:04]}
Nxb1 {[%clk 00:00:12]} {[%emt 00:00:05]} 50. Nxb8 {[%emt 00:00:04]} Nc3+ {[%clk
00:00:12]} 51. Kd3 {[%clk 00:00:04]} {[%emt 00:00:05]} Nxd5 {[%clk 00:00:13]}
52. Kc4 {[%clk 00:00:05]} b3 {[%clk 00:00:10]} {[%emt 00:00:04]} 53. Bd4 {[%clk
00:00:06]} Ne3+ {[%clk 00:00:08]} {[%emt 00:00:05]} 54. Kc3 {[%clk 00:00:04]}
{[%emt 00:00:04]} Nxg2 {[%clk 00:00:08]} 55. Nd7 {[%clk 00:00:04]} {[%emt
00:00:05]} Nxh4 {[%clk 00:00:09]} 56. Nb6 {[%clk 00:00:05]} Ba6 {[%clk
00:00:09]} 57. c7 {[%clk 00:00:06]} {[%emt 00:00:08]} Nxf3 {[%clk 00:00:10]} 58.
Bf6 {[%clk 00:00:07]} g5 {[%clk 00:00:09]} 59. Kb4 {[%emt 00:00:04]} Nd2 {[%clk
00:00:08]} 60. Ka5 {[%clk 00:00:09]} {[%emt 00:00:05]} Bb7 {[%clk 00:00:07]} 61.
Nd5 {[%clk 00:00:09]} Nc4+ {[%clk 00:00:08]} {[%emt 00:00:04]} 62. Kb5 {[%clk
00:00:10]} Nd6+ {[%clk 00:00:08]} {[%emt 00:00:04]} 63. Kb6 {[%clk 00:00:11]}
Bc8 {[%clk 00:00:09]} 64. Ne7+ {[%clk 00:00:12]} {[%emt 00:00:05]} Kf7 {[%clk
00:00:10]} 65. Nxc8 {[%clk 00:00:11]} Nxc8+ {[%clk 00:00:11]} 66. Kb7 {[%emt
00:00:12]} Nd6+ {[%clk 00:00:11]} 67. Kc6 {[%clk 00:00:13]} Nc8 {[%clk
00:00:12]} 68. Bb2 {[%clk 00:00:13]} f3 {[%clk 00:00:12]} {[%emt 00:00:05]} 69.
Kb7 {[%clk 00:00:14]} Nd6+ {[%clk 00:00:13]} 70. Kc6 {[%clk 00:00:15]} Ke6
{[%clk 00:00:15]} 71. Ba3 {[%clk 00:00:14]} {[%emt 00:00:04]} Nc8 {[%clk
00:00:15]} 0-1

[Event "MČR 2022 blesk"]
[Site "Turnov, Czech Republic"]
[Date "2022.09.10"]
[Round "2.5"]
[White "Civin, Tomas"]
[Black "Stocek, Jiri"]
[Result "0-1"]
[TimeControl "2x 3 min + 2s/move"]
[WhiteElo "2394"]
[BlackElo "2384"]

1. e4 {[%clk 00:03:02]} c5 {[%clk 00:03:03]} 2. d4 {[%clk 00:03:02]} {[%emt
00:00:14]} cxd4 {[%clk 00:03:02]} 3. c3 {[%clk 00:03:03]} e5 {[%clk 00:02:59]}
4. Nf3 {[%clk 00:03:03]} {[%emt 00:00:04]} Nc6 {[%clk 00:02:59]} 5. cxd4 {[%clk
00:03:02]} exd4 {[%clk 00:03:00]} 6. Nxd4 {[%clk 00:03:02]} {[%emt 00:00:05]}
Nf6 {[%clk 00:03:00]} 7. Nc3 {[%clk 00:02:59]} {[%emt 00:00:05]} Bb4 {[%clk
00:02:47]} {[%emt 00:00:15]} 8. Nxc6 {[%clk 00:02:54]} {[%emt 00:00:07]} bxc6
{[%clk 00:02:47]} 9. Bd3 {[%clk 00:02:53]} {[%emt 00:00:06]} d5 {[%clk
00:02:44]} {[%emt 00:00:05]} 10. Qa4 {[%clk 00:02:34]} {[%emt 00:00:26]} Bxc3+
{[%clk 00:02:35]} {[%emt 00:00:05]} 11. bxc3 {[%clk 00:02:34]} O-O {[%clk
00:02:26]} {[%emt 00:00:12]} 12. e5 {[%clk 00:02:25]} {[%emt 00:00:11]} Nd7
{[%clk 00:02:03]} {[%emt 00:00:30]} 13. f4 {[%clk 00:02:22]} Nc5 {[%clk
00:02:02]} {[%emt 00:00:05]} 14. Qd1 {[%clk 00:02:22]} {[%emt 00:00:05]} Nxd3+
{[%clk 00:01:57]} {[%emt 00:00:10]} 15. Qxd3 {[%clk 00:02:23]} a5 {[%clk
00:01:58]} 16. Be3 {[%clk 00:02:23]} Ba6 {[%clk 00:01:58]} {[%emt 00:00:10]} 17.
Qd4 {[%clk 00:02:24]} Qh4+ {[%clk 00:01:54]} 18. g3 {[%clk 00:02:25]} Qg4
{[%clk 00:01:48]} {[%emt 00:00:04]} 19. Qd2 {[%clk 00:02:25]} {[%emt 00:00:09]}
Qf3 {[%clk 00:01:42]} 20. Rg1 {[%clk 00:02:26]} Rab8 {[%clk 00:01:39]} {[%emt
00:00:11]} 21. Bc5 {[%clk 00:02:16]} {[%emt 00:00:08]} Rfd8 {[%clk 00:01:23]}
{[%emt 00:00:18]} 22. Qe3 {[%clk 00:01:41]} {[%emt 00:00:38]} Qh5 {[%clk
00:01:18]} {[%emt 00:00:05]} 23. e6 {[%clk 00:01:10]} {[%emt 00:00:36]} Rb2
{[%clk 00:01:02]} {[%emt 00:00:15]} 24. g4 {[%clk 00:01:03]} {[%emt 00:00:09]}
Qh4+ {[%clk 00:00:49]} {[%emt 00:00:15]} 25. Qg3 {[%clk 00:01:04]} Qf6 {[%clk
00:00:42]} {[%emt 00:00:11]} 26. exf7+ {[%clk 00:00:59]} {[%emt 00:00:07]} Qxf7
{[%clk 00:00:41]} {[%emt 00:00:10]} 27. O-O-O {[%clk 00:00:59]} Rdb8 {[%clk
00:00:37]} {[%emt 00:00:04]} 28. Ba3 {[%clk 00:00:45]} {[%emt 00:00:17]} Rxa2
{[%clk 00:00:34]} {[%emt 00:00:04]} 29. c4 {[%clk 00:00:46]} Qf6 {[%clk
00:00:31]} {[%emt 00:00:09]} 0-1

[Event "MČR 2022 blesk"]
[Site "Turnov, Czech Republic"]
[Date "2022.09.10"]
[Round "2.6"]
[White "Petr, Martin"]
[Black "Trepka, Jan"]
[Result "1-0"]
[TimeControl "2x 3 min + 2s/move"]
[WhiteElo "2446"]
[BlackElo "2127"]

1. e4 {[%clk 00:03:02]} {[%emt 00:00:05]} c6 {[%clk 00:03:03]} 2. d4 {[%emt
00:00:04]} d5 3. exd5 {[%clk 00:03:01]} {[%emt 00:00:10]} cxd5 {[%clk
00:03:05]} 4. c4 {[%clk 00:03:02]} Nf6 {[%clk 00:03:04]} 5. Nc3 {[%clk
00:03:03]} g6 {[%clk 00:03:01]} {[%emt 00:00:04]} 6. cxd5 {[%clk 00:02:50]}
{[%emt 00:00:12]} Bg7 {[%clk 00:02:59]} {[%emt 00:00:06]} 7. Bc4 {[%clk
00:02:40]} {[%emt 00:00:10]} O-O {[%clk 00:02:54]} {[%emt 00:00:12]} 8. Nge2
{[%clk 00:02:38]} Nbd7 {[%clk 00:02:45]} {[%emt 00:00:11]} 9. Bb3 {[%clk
00:02:18]} {[%emt 00:00:21]} Nb6 {[%clk 00:02:34]} {[%emt 00:00:13]} 10. Nf4
{[%clk 00:02:18]} {[%emt 00:00:06]} Bf5 {[%clk 00:02:04]} {[%emt 00:00:32]} 11.
O-O {[%clk 00:02:13]} {[%emt 00:00:06]} Be4 {[%clk 00:01:42]} {[%emt 00:00:21]}
12. Nxe4 {[%clk 00:01:46]} {[%emt 00:00:30]} Nxe4 {[%clk 00:01:43]} 13. Qf3
{[%clk 00:01:43]} {[%emt 00:00:11]} Nf6 {[%clk 00:01:42]} 14. Bd2 {[%clk
00:01:43]} {[%emt 00:00:12]} a5 {[%clk 00:01:24]} {[%emt 00:00:08]} 15. a4
{[%emt 00:00:05]} 1-0

[Event "MČR 2022 blesk"]
[Site "Turnov, Czech Republic"]
[Date "2022.09.10"]
[Round "2.7"]
[White "Borkovec, Milan"]
[Black "Klement, Lukas"]
[Result "1/2-1/2"]
[TimeControl "2x 3 min + 2s/move"]
[WhiteElo "1959"]
[BlackElo "2256"]

1. e4 {[%clk 00:03:02]} c5 {[%clk 00:03:03]} 2. Nf3 {[%clk 00:03:03]} d6 {[%clk
00:03:04]} {[%emt 00:00:04]} 3. d4 {[%clk 00:03:04]} cxd4 {[%clk 00:03:05]} 4.
Nxd4 {[%clk 00:03:05]} {[%emt 00:00:05]} Nf6 {[%clk 00:03:05]} 5. Nc3 {[%clk
00:03:07]} a6 {[%clk 00:03:05]} 6. Bg5 {[%clk 00:03:08]} e6 {[%clk 00:03:03]}
{[%emt 00:00:23]} 7. f4 {[%clk 00:03:09]} h6 {[%clk 00:03:04]} 8. Bh4 {[%clk
00:03:08]} Be7 {[%clk 00:02:58]} 9. Qf3 {[%clk 00:03:00]} {[%emt 00:00:05]}
Nbd7 {[%clk 00:02:47]} {[%emt 00:00:08]} 10. O-O-O {[%clk 00:03:00]} {[%emt
00:00:06]} Qc7 {[%clk 00:02:40]} {[%emt 00:00:06]} 11. Kb1 {[%clk 00:02:39]}
{[%emt 00:00:22]} g5 {[%clk 00:02:12]} {[%emt 00:00:29]} 12. fxg5 {[%clk
00:02:40]} Ne5 {[%clk 00:02:12]} {[%emt 00:00:05]} 13. Qe2 {[%clk 00:02:30]}
{[%emt 00:00:11]} Nfg4 {[%clk 00:02:01]} {[%emt 00:00:12]} 14. h3 {[%clk
00:02:22]} {[%emt 00:00:10]} hxg5 {[%clk 00:01:56]} {[%emt 00:00:07]} 15. Bg3
{[%clk 00:02:01]} {[%emt 00:00:23]} b5 {[%clk 00:01:15]} {[%emt 00:00:44]} 16.
a3 {[%clk 00:01:56]} {[%emt 00:00:06]} Bb7 {[%clk 00:01:14]} {[%emt 00:00:13]}
17. Nf3 {[%clk 00:01:56]} Nc4 {[%clk 00:00:51]} {[%emt 00:00:18]} 18. Rd3
{[%clk 00:01:39]} {[%emt 00:00:32]} O-O-O {[%clk 00:00:42]} 19. Qe1 {[%clk
00:01:16]} {[%emt 00:00:27]} Nge5 {[%clk 00:00:41]} 20. Nxe5 {[%clk 00:01:16]}
{[%emt 00:00:04]} Nxe5 {[%clk 00:00:39]} {[%emt 00:00:08]} 21. Rd1 {[%clk
00:01:08]} {[%emt 00:00:04]} Kb8 {[%clk 00:00:35]} {[%emt 00:00:06]} 22. Be2
{[%clk 00:01:04]} {[%emt 00:00:16]} Nc4 {[%clk 00:00:32]} 23. Rd3 {[%clk
00:00:52]} {[%emt 00:00:06]} Rc8 {[%clk 00:00:32]} {[%emt 00:00:05]} 24. Rf1
{[%clk 00:00:44]} {[%emt 00:00:08]} Rhf8 {[%clk 00:00:32]} {[%emt 00:00:14]} 25.
Bd1 {[%clk 00:00:40]} Ka8 {[%clk 00:00:28]} 26. Bf3 {[%clk 00:00:33]} {[%emt
00:00:08]} Qa5 {[%clk 00:00:26]} {[%emt 00:00:07]} 27. e5 {[%clk 00:00:28]}
{[%emt 00:00:07]} d5 {[%clk 00:00:26]} {[%emt 00:00:04]} 28. Na2 {[%clk
00:00:23]} {[%emt 00:00:05]} Qxe1+ 29. Rxe1 {[%clk 00:00:24]} Bc5 {[%clk
00:00:24]} 30. c3 {[%clk 00:00:23]} {[%emt 00:00:10]} Bc6 {[%clk 00:00:21]}
{[%emt 00:00:05]} 31. Nb4 {[%clk 00:00:24]} Bxb4 {[%clk 00:00:20]} 32. axb4
{[%clk 00:00:25]} Kb7 {[%clk 00:00:19]} {[%emt 00:00:29]} 33. Kc2 {[%clk
00:00:26]} f5 {[%clk 00:00:16]} 34. exf6 {[%clk 00:00:26]} Rxf6 {[%clk
00:00:17]} 35. b3 {[%clk 00:00:23]} Nb6 {[%clk 00:00:15]} 36. Be5 {[%clk
00:00:24]} Rff8 {[%clk 00:00:12]} {[%emt 00:00:14]} 37. Bd4 {[%clk 00:00:26]}
Bd7 {[%clk 00:00:11]} 38. Bg4 {[%clk 00:00:27]} Rce8 {[%clk 00:00:10]} 39. Rde3
{[%clk 00:00:28]} {[%emt 00:00:10]} Nc8 {[%clk 00:00:09]} 40. Bxe6 {[%clk
00:00:26]} Rf2+ {[%clk 00:00:10]} 41. Kd3 {[%clk 00:00:25]} {[%emt 00:00:05]}
Rxe6 {[%clk 00:00:10]} 42. Rxe6 {[%clk 00:00:27]} Rxg2 {[%clk 00:00:09]} 43.
R6e2 {[%clk 00:00:26]} {[%emt 00:00:05]} Bxh3 {[%clk 00:00:10]} 44. Rxg2 Bxg2
{[%clk 00:00:10]} 45. c4 {[%clk 00:00:25]} {[%emt 00:00:05]} bxc4+ {[%clk
00:00:08]} 46. bxc4 {[%clk 00:00:26]} Be4+ {[%clk 00:00:08]} {[%emt 00:00:04]}
47. Kc3 {[%clk 00:00:28]} Nd6 {[%clk 00:00:07]} 48. Bc5 {[%clk 00:00:25]}
{[%emt 00:00:05]} Nxc4 {[%clk 00:00:07]} {[%emt 00:00:06]} 49. Rxe4 {[%clk
00:00:25]} dxe4 {[%clk 00:00:06]} {[%emt 00:00:04]} 50. Kxc4 {[%clk 00:00:27]}
Kc6 {[%clk 00:00:07]} 51. Be3 {[%clk 00:00:28]} g4 {[%clk 00:00:08]} {[%emt
00:00:26]} 52. Kb3 {[%clk 00:00:27]} Kb5 {[%clk 00:00:10]} 53. Bf2 {[%clk
00:00:28]} a5 {[%clk 00:00:10]} 54. bxa5 {[%clk 00:00:29]} {[%emt 00:00:05]}
Kxa5 {[%clk 00:00:11]} 55. Kc4 {[%clk 00:00:30]} 1/2-1/2